fUST/lending_fUST_20260202
["ID","MTS","AMOUNT","RATE_DAILY","PERIOD"]
[404206784,1769964099399,200.0,0.0003,120]
[404207004,1769964356176,-257.8243541,0.00011523,2]
[404207005,1769964356199,-2879.05241955,0.00011639,2]
[404207006,1769964547079,-920.11553753,0.00011408,2]
[404207007,1769964553095,-4079.88446247,0.00011408,2]
[404207008,1769964553116,-150.0,0.00011466,2]
[404207009,1769964553137,-5000.0,0.00011523,2]
[404207010,1769964553155,-150.0,0.00013,2]
[404207011,1769964553175,-177.0,0.00013466,2]
[404207012,1769964553193,-150.22694505,0.00014175,2]
[404207013,1769964556680,5000.0,0.00011294,2]
[404207014,1769964557119,-168.1974,0.00015466,2]
[404207016,1769964581000,5000.0,0.00015158,2]
[404207017,1769964603322,5000.0,0.00015158,2]
[404207018,1769964625793,5000.0,0.00015158,2]
[404207040,1769964632048,-4756.69759946,0.00015311,2]
[404207042,1769964632060,-243.30240054,0.00015311,2]
[404207044,1769964632069,-35.8026,0.00015466,2]
[404207046,1769964632078,-53.83179273,0.00015495,2]
[404207063,1769964633956,5000.0,0.00015158,2]
[404207088,1769964638220,-96.23269558,0.00015495,2]
[404207089,1769964638231,-43210.11002249,0.00017365,2]
[404207090,1769964638241,-231.0,0.00017466,2]
[404207091,1769964638250,-258.0,0.00019466,2]
[404207092,1769964638260,-150.0,0.0002,2]
[404207093,1769964638270,-285.0,0.00021466,2]
[404207094,1769964638280,-1487.539338,0.00021669,2]
[404207095,1769964638291,-1041.66666667,0.00022721,2]
[404207096,1769964638301,-312.0,0.00023466,2]
[404207097,1769964638311,-740.74221401,0.00024759,2]
[404207098,1769964638320,-316.20229495,0.00025466,2]
[404207099,1769964638330,-181.585,0.00026849,14]
[404207100,1769964638339,-16620.9474962,0.00027766,2]
[404207101,1769964638348,-3137.52495266,0.000289,2]
[404207102,1769964638357,-339.0435609,0.00029,10]
[404207103,1769964638367,-180.28829158,0.00030014,4]
[404207104,1769964638376,-385.16324247,0.00031897,2]
[404207105,1769964638390,-500.0,0.00032899,7]
[404207106,1769964638399,-500.0,0.00032899,7]
[404207107,1769964638408,-301.15289263,0.00032899,7]
[404207108,1769964638418,-500.0,0.00032899,7]
[404207109,1769964638429,-500.0,0.00032899,7]
[404207110,1769964638438,-205.67419385,0.00032899,7]
[404207111,1769964638450,-2439.03,0.0003299,10]
[404207112,1769964638459,-2689.46,0.0003299,10]
[404207113,1769964638467,-212.65244942,0.00032999,7]
[404207114,1769964638475,-304.15201863,0.00032999,7]
[404207115,1769964638484,-33520.09785857,0.00033,4]
[404207138,1769964643943,-38842.87933178,0.00033,4]
[404207143,1769964646270,-3521.20955049,0.00033,4]
[404207144,1769964646327,-32568.57150613,0.00033,4]
[404207145,1769964646336,-1000.0,0.00033,2]
[404207146,1769964646347,-400.0,0.00033253,11]
[404207147,1769964646356,-710.0,0.00033352,11]
[404207148,1769964646371,-402.0,0.0003336,11]
[404207149,1769964646382,-710.0,0.00033426,11]
[404207150,1769964646391,-156.1736751,0.00033605,30]
[404207151,1769964646403,-600.0,0.00033659,30]
[404207152,1769964646413,-161.0,0.00033708,11]
[404207153,1769964646423,-710.0,0.00033746,11]
[404207154,1769964646434,-710.0,0.00033942,11]
[404207155,1769964646443,-1000.0,0.00034,2]
[404207156,1769964646453,-7652.03059483,0.00034,120]
[404207157,1769964646463,-780.0,0.000341,2]
[404207158,1769964646473,-384.28154078,0.000349,2]
[404207159,1769964646482,-2241.22,0.0003499,10]
[404207160,1769964646491,-4146.2037983,0.00035,120]
[404207161,1769964646500,-1000.0,0.00035,2]
[404207162,1769964646510,-110623.75350368,0.00035,2]
[404207164,1769964970270,154.31309346,0.00027765,120]
[404207165,1769965241855,1783.25185446,0.00012981,2]
[404207256,1769965542136,-330.58775866,0.00012595,2]
[404207262,1769965650084,-5000.0,0.00012344,2]
[404207263,1769965650106,-5000.0,0.00012469,2]
[404207264,1769965650127,-1200.0,0.00012721,2]
[404207265,1769965650148,-300.0,0.00012721,2]
[404207266,1769965650168,-300.0,0.00012913,2]
[404207267,1769965650188,-300.0,0.00012914,2]
[404207268,1769965650211,-150.0,0.00012916,2]
[404207269,1769965650231,-606.0,0.0001314,2]
[404207270,1769965650252,-500.0,0.0001314,2]
[404207271,1769965650270,-500.0,0.0001314,2]
[404207272,1769965650289,-500.0,0.00013273,2]
[404207273,1769965650309,-1001.99953092,0.00013273,2]
[404207274,1769965650330,-266.7432918,0.00013273,2]
[404207275,1769965650350,-247.47386822,0.00013699,2]
[404207276,1769965650368,-400.31230254,0.00013699,2]
[404207277,1769965650387,-500.0,0.00013699,2]
[404207278,1769965650407,-500.7604021,0.00013699,2]
[404207279,1769965650429,-500.0,0.00013699,2]
[404207280,1769965650449,-500.0,0.00013699,2]
[404207281,1769965650466,-415.08803567,0.00013699,2]
[404207282,1769965650489,-500.0,0.00013699,2]
[404207283,1769965650508,-329.19001283,0.00013699,2]
[404207284,1769965650529,-500.0,0.00013699,2]
[404207285,1769965650547,-500.0,0.00013821,2]
[404207286,1769965650566,-420.0,0.00013955,2]
[404207287,1769965650585,-1680.0,0.00013993,2]
[404207288,1769965650604,-150.03418288,0.00014175,2]
[404207289,1769965650624,-1003.32153171,0.00014247,2]
[404207290,1769965650643,-1000.0,0.00014247,2]
[404207291,1769965650662,-1225.49381677,0.00014795,2]
[404207292,1769965650681,-2745.33433356,0.00014816,2]
[404207293,1769965650705,-500.0,0.00014861,2]
[404207294,1769965650725,-385.99195581,0.00014861,2]
[404207295,1769965650746,-154.9572954,0.00014861,2]
[404207296,1769965650768,-405.21807983,0.00014861,2]
[404207297,1769965650788,-500.0,0.00014861,2]
[404207298,1769965650810,-500.0,0.00014861,2]
[404207299,1769965650831,-500.0,0.00014861,2]
[404207300,1769965650851,-500.0,0.00014861,2]
[404207301,1769965650871,-572.91387746,0.00014861,2]
[404207302,1769965650892,-500.0,0.00014861,2]
[404207303,1769965650911,-177.0,0.00014916,2]
[404207304,1769965650930,-313.0,0.00015308,2]
[404207305,1769965650953,-780.0,0.00015392,2]
[404207306,1769965650979,-334.92,0.00018521,2]
[404207307,1769965651007,-1041.66666667,0.00019427,2]
[404207308,1769965651031,-1696.1412903,0.00020234,2]
[404207309,1769965651052,-678.17378119,0.00020558,2]
[404207310,1769965651076,-181.585,0.00020558,2]
[404207311,1769965651098,-171.072703,0.00021209,2]
[404207312,1769965651123,-179.0,0.00023293,2]
[404207313,1769965651146,-949.6114185,0.00024702,2]
[404207314,1769965651169,-179.0,0.00026293,2]
[404207315,1769965651195,-150.03418288,0.00026998,2]
[404207316,1769965651222,-506.49876476,0.00027765,30]
[404207317,1769965651244,-179.0,0.00029293,2]
[404207318,1769965651267,-924.4602762,0.00031168,2]
[404207319,1769965651289,-740.74221401,0.00031285,2]
[404207320,1769965651311,-890.36550429,0.00031731,2]
[404207321,1769965651334,-710.0,0.00031936,3]
[404207322,1769965651357,-179.0,0.00032293,2]
[404207323,1769965651383,-272.03119786,0.000332,117]
[404207324,1769965651403,-150.0,0.00033676,2]
[404207325,1769965651423,-285.84586081,0.00033813,2]
[404207326,1769965651447,-256.77549498,0.0003395,2]
[404207327,1769965651472,-5212.41269484,0.00034489,2]
[404207352,1769965832805,-1041.66666667,0.00033632,2]
[404207353,1769965832821,-300.0,0.00033802,2]
[404207354,1769965832831,-4258.24106308,0.00033803,2]
[404207355,1769965832843,-274.06446937,0.00033803,2]
[404207356,1769965832855,-467.69446755,0.00033803,2]
[404207357,1769965832864,-740.74221401,0.00033803,2]
[404207358,1769965832874,-117.01225424,0.00033803,2]
[404207373,1769965838372,-491.1711372,0.00033803,2]
[404207374,1769965838384,-2787.8518642,0.00033803,2]
[404207375,1769965838426,-386.72667835,0.00033803,2]
[404207554,1769965846567,-148.80899208,0.00033803,2]
[404207559,1769965846610,-3521.20955049,0.00033803,2]
[404207691,1769965887365,10000.0,0.00030137,120]
[404207694,1769965904306,5332.0,0.00030137,120]
[404207696,1769966094859,731.09,0.00030137,120]
[404207697,1769966108360,151.0,0.00037602,31]
[404207698,1769966109112,151.0,0.00037602,31]
[404209807,1769966539576,333.33898217,0.00037602,120]
[404209814,1769966831114,-150.0,0.00025142,2]
[404209815,1769966831136,-157.31606661,0.00025628,5]
[404209816,1769966831159,-225.1942388,0.00026953,2]
[404209817,1769966831180,-210.73370764,0.00026953,2]
[404209818,1769966831201,-285.0,0.00027142,2]
[404209819,1769966831222,-121.92564919,0.00029711,2]
[404209820,1769966840541,1060863.77874546,0.00037602,20]
[404209830,1769966918333,1767.33305528,6.546e-05,2]
[404209831,1769966955082,-63114.56420629,0.000154,2]
[404209833,1769967024110,4668.69902374,0.00015246,2]
[404209873,1769967032399,-747.47682233,0.000154,2]
[404209880,1769967032455,-302.0,0.000154,2]
[404210263,1769967041223,2501.15097415,0.00015246,2]
[404210296,1769967046631,-2498.84902585,0.00015246,2]
[404210297,1769967046641,-1022.36936068,0.000154,2]
[404210298,1769967046747,-3190.43291704,0.000154,2]
[404210299,1769967046758,-1128.30011786,0.000154,2]
[404210300,1769967046767,-200.24896621,0.000154,2]
[404210302,1769967055854,-409.68106406,0.000154,2]
[404210303,1769967055878,-32.06996973,0.000154,2]
[404210304,1769967085394,-409.68106406,0.00014943,2]
[404210305,1769967190851,678.73,0.0001,2]
[404210310,1769967480638,209.48,9.99e-06,11]
[404210311,1769967480925,209.47,9.99e-06,11]
[404212029,1769967932134,-2856.24787216,0.00013245,2]
[404212036,1769968044109,-1118.79385136,0.00012852,2]
[404212037,1769968044129,-5000.0,0.00012982,2]
[404212038,1769968044150,-4263.54531115,0.00013113,2]
[404212039,1769968044171,-150.0,0.00013312,2]
[404212040,1769968044192,-300.0,0.00013512,2]
[404212041,1769968044213,-300.0,0.00013513,2]
[404212042,1769968044232,-300.0,0.00013513,2]
[404212043,1769968044254,-300.0,0.00013513,2]
[404212044,1769968044276,-300.0,0.00013513,2]
[404212045,1769968044295,-300.0,0.00013513,2]
[404212046,1769968044314,-621.0,0.00014069,2]
[404212047,1769968044334,-150.04815502,0.00014175,2]
[404212048,1769968044353,-1008.4947996,0.00014642,2]
[404212049,1769968044374,-177.0,0.00015312,2]
[404212050,1769968044397,-150.40630044,0.00016438,2]
[404212051,1769968044419,-204.0,0.00017312,2]
[404212052,1769968044437,-1732.118701,0.0001747,2]
[404212053,1769968044457,-253.626,0.00017471,2]
[404212054,1769968044476,-200.892,0.00017471,2]
[404212055,1769968044497,-500.0,0.00017999,2]
[404212056,1769968044517,-500.0,0.00017999,2]
[404212057,1769968044537,-500.0,0.00017999,2]
[404212058,1769968044557,-500.0,0.00017999,2]
[404212059,1769968044577,-500.0,0.00017999,2]
[404212060,1769968044597,-500.0,0.00017999,2]
[404212061,1769968044617,-500.0,0.00017999,2]
[404212062,1769968044637,-500.0,0.00017999,2]
[404212063,1769968044657,-500.0,0.00017999,2]
[404212064,1769968044677,-500.0,0.00017999,2]
[404212065,1769968044698,-500.0,0.00017999,2]
[404212066,1769968044719,-500.0,0.00017999,2]
[404212067,1769968044738,-500.0,0.00017999,2]
[404212068,1769968044759,-500.0,0.00017999,2]
[404212069,1769968044778,-500.0,0.00017999,2]
[404212070,1769968044798,-500.0,0.00017999,2]
[404212071,1769968044817,-500.0,0.00017999,2]
[404212072,1769968044838,-500.0,0.00017999,2]
[404212073,1769968044862,-500.0,0.00017999,2]
[404212074,1769968044883,-500.0,0.00017999,2]
[404212075,1769968044904,-500.0,0.00017999,2]
[404212076,1769968044924,-500.0,0.00017999,2]
[404212077,1769968044946,-500.0,0.00017999,2]
[404212078,1769968044970,-500.0,0.00017999,2]
[404212079,1769968044992,-500.0,0.00017999,2]
[404212080,1769968045013,-500.0,0.00017999,2]
[404212081,1769968045033,-500.0,0.00017999,2]
[404212082,1769968045056,-500.0,0.00017999,2]
[404212083,1769968045084,-500.0,0.00017999,2]
[404212084,1769968045107,-342.39900269,0.00017999,2]
[404212085,1769968045130,-500.0,0.00017999,2]
[404212086,1769968045153,-500.0,0.00017999,2]
[404212087,1769968045175,-500.0,0.00017999,2]
[404212088,1769968045197,-500.0,0.00017999,2]
[404212089,1769968045220,-500.0,0.00017999,2]
[404212090,1769968045240,-500.0,0.00017999,2]
[404212091,1769968045260,-500.0,0.00017999,2]
[404212092,1769968045280,-575.59828532,0.00017999,2]
[404212093,1769968045300,-500.0,0.00017999,2]
[404212094,1769968045321,-500.0,0.00017999,2]
[404212095,1769968045342,-500.0,0.00017999,2]
[404212096,1769968045363,-500.0,0.00017999,2]
[404212097,1769968045386,-500.0,0.00017999,2]
[404212098,1769968045406,-500.0,0.00017999,2]
[404212099,1769968045428,-500.0,0.00017999,2]
[404212100,1769968045452,-500.0,0.00017999,2]
[404212101,1769968045475,-500.0,0.00017999,2]
[404212102,1769968045496,-249.87048278,0.00017999,2]
[404212103,1769968045517,-500.0,0.00017999,2]
[404212104,1769968045538,-500.0,0.00017999,2]
[404212105,1769968045559,-500.0,0.00017999,2]
[404212106,1769968045579,-500.0,0.00017999,2]
[404212107,1769968045599,-500.0,0.00017999,2]
[404212108,1769968045620,-500.0,0.00017999,2]
[404212109,1769968045641,-500.0,0.00017999,2]
[404212110,1769968045661,-500.0,0.00017999,2]
[404212111,1769968045682,-500.0,0.00017999,2]
[404212112,1769968045702,-500.0,0.00017999,2]
[404212113,1769968045725,-300.0,0.00017999,2]
[404212114,1769968045744,-500.0,0.00017999,2]
[404212115,1769968045763,-499.6163048,0.00017999,2]
[404212116,1769968045782,-500.0,0.00017999,2]
[404212117,1769968045881,-525.03404007,0.00017999,2]
[404212118,1769968045903,-500.0,0.00017999,2]
[404212119,1769968045929,-500.0,0.00017999,2]
[404212120,1769968045950,-500.0,0.00017999,2]
[404212121,1769968045971,-500.0,0.00017999,2]
[404212122,1769968045991,-500.0,0.00017999,2]
[404212123,1769968046010,-500.0,0.00017999,2]
[404212124,1769968046032,-500.0,0.00017999,2]
[404212125,1769968046058,-500.0,0.00017999,2]
[404212126,1769968046079,-500.0,0.00017999,2]
[404212127,1769968046099,-500.0,0.00017999,2]
[404212128,1769968046121,-500.0,0.00017999,2]
[404212129,1769968046141,-500.0,0.00017999,2]
[404212130,1769968046164,-500.0,0.00017999,2]
[404212131,1769968046185,-500.0,0.00017999,2]
[404212132,1769968046205,-500.0,0.00017999,2]
[404212133,1769968046226,-356.96854065,0.00017999,2]
[404212134,1769968046246,-500.0,0.00017999,2]
[404212135,1769968046266,-500.0,0.00017999,2]
[404212136,1769968046286,-2584.49043069,0.00018,2]
[404212164,1769968231644,-146.32346934,0.0001782,2]
[404212166,1769968231656,-3621.50184145,0.0001782,2]
[404212170,1769968231725,-1232.17468921,0.0001782,2]
[404212171,1769968231735,-683.0,0.0001782,2]
[404212172,1769968231745,-150.0,0.0001791,2]
[404212173,1769968231755,-150.28848458,0.00017954,2]
[404212174,1769968231765,-7688.13451817,0.00018,2]
[404212175,1769968231776,-2565.9670669,0.0001949,2]
[404212176,1769968231785,-220.17372584,0.0001991,2]
[404212177,1769968231799,-221.4075153,0.00019951,2]
[404212198,1769968237754,-1242.3550373,0.00019951,2]
[404212199,1769968237763,-179.97899,0.00020029,2]
[404212200,1769968237773,-182.13973474,0.0002609,5]
[404212201,1769968237782,-157.50721693,0.0002609,5]
[404212202,1769968237791,-184.504429,0.00027358,5]
[404212203,1769968237801,-1041.66666667,0.00029226,2]
[404212204,1769968237810,-740.74221401,0.00029226,2]
[404212205,1769968237819,-162.08203981,0.00029711,2]
[404212206,1769968237828,-13633.36623575,0.00029851,2]
[404212207,1769968237840,-9244.44847512,0.00029851,2]
[404212294,1769968238784,-1994.19754093,0.00029851,2]
[404212296,1769968238795,-150.28848458,0.0003064,2]
[404212298,1769968238808,-500.0,0.00031482,7]
[404212301,1769968238820,-710.0,0.00032867,11]
[404212303,1769968238832,-710.0,0.0003292,11]
[404212305,1769968238843,-710.0,0.00033073,11]
[404212307,1769968238856,-267.57,0.00033073,11]
[404212310,1769968238867,-710.0,0.00033173,11]
[404212312,1769968238881,-400.0,0.00033191,11]
[404212314,1769968238894,-400.0,0.00033191,11]
[404212317,1769968238905,-32.82199733,0.00033494,11]
[404212574,1769968244149,-677.17800267,0.00033494,11]
[404212575,1769968244160,-333.96234491,0.00033569,2]
[404212576,1769968244172,-392.464376,0.00033569,2]
[404212577,1769968244185,-710.0,0.00033618,11]
[404212578,1769968244197,-278.57645302,0.00033799,7]
[404212579,1769968244209,-212.90641304,0.00033799,7]
[404212580,1769968244221,-161.0,0.000338,11]
[404212581,1769968244231,-161.0,0.00033938,11]
[404212582,1769968244242,-171.18366332,0.0003395,2]
[404212583,1769968244253,-710.0,0.00033954,11]
[404212584,1769968244264,-400.0,0.00034098,11]
[404212585,1769968244275,-150.0,0.00034215,2]
[404212586,1769968244285,-150.74375766,0.00034215,2]
[404212587,1769968244298,-156.75199176,0.00034215,2]
[404212588,1769968244309,-204.3513618,0.00034215,2]
[404212589,1769968244321,-200.0,0.00034215,2]
[404212590,1769968244331,-500.0,0.00034215,2]
[404212591,1769968244343,-150.0,0.00034215,2]
[404212592,1769968244354,-151.09031229,0.00034215,2]
[404212593,1769968244366,-710.0,0.00034274,11]
[404212594,1769968244377,-478.0,0.00034306,11]
[404212595,1769968244388,-150.0,0.00034352,2]
[404212596,1769968244399,-500.0,0.00034352,2]
[404212597,1769968244409,-150.0,0.00034352,2]
[404212598,1769968244419,-273.0,0.00034355,2]
[404212599,1769968244433,-2402.1675419,0.00034389,2]
[404212600,1769968244446,-150.0,0.00034489,2]
[404212601,1769968244458,-500.0,0.00034489,2]
[404212602,1769968244470,-150.0,0.00034489,2]
[404212603,1769968244482,-2287.16327433,0.00034489,2]
[404212604,1769968244541,-299.15458782,0.00034489,2]
[404212605,1769968244559,-3776.46729286,0.00034489,2]
[404212606,1769968244670,-500.0,0.00034626,2]
[404212607,1769968244684,-150.0,0.00034626,2]
[404212608,1769968244694,-710.0,0.00034774,11]
[404212609,1769968244704,-236.5661345,0.000349,2]
[404212610,1769968244939,-640.92913706,0.000349,2]
[404212611,1769968244949,-400.0,0.00034943,11]
[404212612,1769968244958,-286.06,0.0003499,3]
[404212613,1769968244968,-858.18,0.0003499,3]
[404212614,1769968244979,-2589.37,0.0003499,10]
[404212615,1769968244989,-2157.81,0.0003499,10]
[404212616,1769968245002,-1798.17,0.0003499,10]
[404212617,1769968245012,-1545.13964644,0.00035,2]
[404212645,1769968245892,-4713.84202388,0.00035,2]
[404212646,1769968245904,-3521.21838653,0.00035,2]
[404212647,1769968413882,10102.76615654,0.00037616,120]
[404212649,1769968891767,9166.0,0.00037624,30]
[404212651,1769968938438,-222.24497766,0.00025205,2]
[404212652,1769968938467,-148.43419372,0.00025205,2]
[404212654,1769969145136,-1411.25775378,0.00024703,2]
[404212655,1769969372119,-5000.0,0.00024156,2]
[404212656,1769969372139,-182.32,0.000244,2]
[404212657,1769969372162,-330.58775866,0.00024456,2]
[404212658,1769969372182,-150.0,0.00024828,2]
[404212659,1769969372202,-1200.0,0.00026848,2]
[404212660,1769969372221,-300.0,0.00026848,2]
[404212661,1769969372242,-300.0,0.00026848,2]
[404212662,1769969372263,-500.0,0.00028739,7]
[404212663,1769969372283,-500.0,0.0002885,7]
[404212664,1769969372303,-500.0,0.000292,7]
[404212665,1769969372324,-500.0,0.00029542,7]
[404212666,1769969372344,-500.0,0.00030327,7]
[404212667,1769969392721,5000.0,0.00024953,2]
[404212669,1769969415768,5000.0,0.00024953,2]
[404212684,1769969431783,-514.97039225,0.00031096,7]
[404212685,1769969431793,-151.62002564,0.00031587,7]
[404212686,1769969431803,-702.62310577,0.00032277,2]
[404212687,1769969431813,-695.29206994,0.00032358,2]
[404212688,1769969431825,-45.45014407,0.00032358,2]
[404212689,1769969431835,-364.59466729,0.00032602,7]
[404212690,1769969431847,-135.40533271,0.00032602,7]
[404212691,1769969431857,-369.0,0.00032998,3]
[404212692,1769969431867,-300.0,0.00032998,3]
[404212693,1769969431876,-322.0,0.00032998,3]
[404212694,1769969431886,-500.0,0.00032999,7]
[404212695,1769969431895,-336.11489334,0.00032999,7]
[404212696,1769969431906,-500.0,0.00032999,7]
[404212697,1769969431916,-500.0,0.00032999,7]
[404212699,1769969431925,-500.0,0.00032999,7]
[404212701,1769969431935,-500.0,0.00032999,7]
[404212703,1769969431944,-500.0,0.00032999,7]
[404212705,1769969431954,-355.78506178,0.00032999,7]
[404212707,1769969431963,-500.0,0.00032999,7]
[404212709,1769969431972,-500.0,0.00032999,7]
[404212711,1769969431982,-296.32429182,0.00032999,7]
[404212713,1769969431991,-500.0,0.00032999,7]
[404212715,1769969432001,-500.0,0.00032999,7]
[404212717,1769969432010,-500.0,0.00032999,7]
[404212719,1769969432019,-500.0,0.00032999,7]
[404212721,1769969432028,-500.0,0.00032999,7]
[404212723,1769969432037,-500.0,0.00032999,7]
[404212724,1769969432046,-549.05329457,0.00032999,7]
[404212725,1769969432055,-174.98704828,0.00032999,7]
[404212726,1769969432065,-500.0,0.00032999,7]
[404212727,1769969432074,-500.0,0.00032999,7]
[404212728,1769969432083,-500.0,0.00032999,7]
[404212729,1769969432092,-500.0,0.00032999,7]
[404212730,1769969432101,-500.0,0.00032999,7]
[404212731,1769969432110,-500.0,0.00032999,7]
[404212732,1769969432119,-500.0,0.00032999,7]
[404212733,1769969432128,-500.0,0.00032999,7]
[404212734,1769969432137,-500.0,0.00032999,7]
[404212735,1769969432147,-500.0,0.00032999,7]
[404212736,1769969432156,-500.0,0.00032999,7]
[404212737,1769969432165,-500.0,0.00032999,7]
[404212738,1769969432174,-500.0,0.00032999,7]
[404212739,1769969432183,-500.0,0.00032999,7]
[404212740,1769969432193,-500.0,0.00032999,7]
[404212741,1769969432202,-500.0,0.00032999,7]
[404212742,1769969432211,-500.0,0.00032999,7]
[404212743,1769969432220,-500.0,0.00032999,7]
[404212744,1769969432230,-500.0,0.00032999,7]
[404212745,1769969432239,-500.0,0.00032999,7]
[404212746,1769969432248,-500.0,0.00032999,7]
[404212747,1769969432257,-500.0,0.00032999,7]
[404212748,1769969432266,-500.0,0.00032999,7]
[404212749,1769969432276,-500.0,0.00032999,7]
[404212750,1769969432285,-433.70011333,0.00032999,7]
[404212751,1769969432294,-500.0,0.00032999,7]
[404212752,1769969432303,-500.0,0.00032999,7]
[404212753,1769969432312,-500.0,0.00032999,7]
[404212754,1769969432322,-500.0,0.00032999,7]
[404212755,1769969432331,-500.0,0.00032999,7]
[404212756,1769969432340,-500.0,0.00032999,7]
[404212757,1769969432350,-500.0,0.00032999,7]
[404212758,1769969432359,-500.0,0.00032999,7]
[404212759,1769969432368,-500.0,0.00032999,7]
[404212760,1769969432377,-500.0,0.00032999,7]
[404212761,1769969432386,-500.0,0.00032999,7]
[404212762,1769969432395,-551.56105103,0.00032999,7]
[404212763,1769969432405,-500.0,0.00032999,7]
[404212764,1769969432415,-500.0,0.00032999,7]
[404212765,1769969432423,-500.0,0.00032999,7]
[404212766,1769969432433,-535.69685406,0.00032999,7]
[404212767,1769969432442,-500.0,0.00032999,7]
[404212768,1769969432451,-500.0,0.00032999,7]
[404212769,1769969432460,-500.0,0.00032999,7]
[404212770,1769969432469,-500.0,0.00032999,7]
[404212771,1769969432478,-500.0,0.00032999,7]
[404212772,1769969432487,-500.0,0.00032999,7]
[404212773,1769969432496,-191.58778215,0.00032999,7]
[404212774,1769969432505,-500.0,0.00032999,7]
[404212775,1769969432514,-500.0,0.00032999,7]
[404212776,1769969432523,-500.0,0.00032999,7]
[404212777,1769969432533,-500.0,0.00032999,7]
[404212778,1769969432623,-500.0,0.00032999,7]
[404212779,1769969432635,-500.0,0.00032999,7]
[404212780,1769969432644,-13375.51858566,0.00033,10]
[404212781,1769969432655,-740.74221401,0.00033072,7]
[404212782,1769969432664,-217.62495828,0.000332,117]
[404212783,1769969432674,-25919.51473763,0.000332,2]
[404212784,1769969432683,-999.9952314,0.00033948,2]
[404212785,1769969432693,-524.58585551,0.00033949,7]
[404212786,1769969432702,-171.18366332,0.0003395,2]
[404212787,1769969432714,-202.9,0.00034379,38]
[404212788,1769969432723,-572.12,0.00034379,3]
[404212789,1769969432732,-1498.48,0.00034379,10]
[404212790,1769969432741,-1248.73,0.00034379,10]
[404212791,1769969432750,-1040.61,0.00034379,10]
[404212792,1769969432759,-29501.19706899,0.00034389,2]
[404212793,1769969432776,-912.08134046,0.00034389,2]
[404212803,1769969437913,-33296.56568686,0.00034389,2]
[404212804,1769969437925,-427.08947166,0.00034389,2]
[404212805,1769969437935,-701.99621724,0.000349,2]
[404212806,1769969437944,-725.56595876,0.00035,2]
[404212807,1769969439140,5000.0,0.00024953,2]
[404212858,1769969440167,-867.17,0.0003499,10]
[404212860,1769969440177,-30513.95402637,0.00035,2]
[404212862,1769969440187,-77968.36537369,0.00035,2]
[404213239,1769969445360,-762.58502262,0.00035,2]
[404213254,1769969446111,-4153.08446676,0.00035,2]
[404213255,1769969446169,-3521.23581405,0.00035,2]
[404213256,1769969462573,5000.0,0.00024953,2]
[404213257,1769969467519,500.0,0.00013273,2]
[404213258,1769969467589,501.94091464,0.00013821,2]
[404213259,1769969468570,501.32902716,0.00013699,2]
[404213260,1769969468594,150.0,0.00023956,120]
[404213261,1769969468952,150.0,0.00025418,120]
[404213262,1769969469307,194.1,0.0002688,120]
[404213263,1769969469689,258.8,0.00028342,120]
[404213264,1769969470074,323.5,0.00029804,120]
[404213265,1769969471054,261.05286874,0.00013699,2]
[404213266,1769969475588,500.0,0.00013699,2]
[404213267,1769969475620,722.3651231,0.00014247,2]
[404213268,1769969481209,502.70621251,0.00013699,2]
[404213269,1769969486224,500.0,0.00013699,2]